Cogmind - Beta 14 @@@ ROGUE MODE // 2025.03.16 @ 20:41:50 Player: potator Result: Destroyed by Heavy Explosive Trap Performance ------------- Evolutions (1) 500 Regions Visited (5) 1000 Robots Destroyed (36) 180 Value Destroyed (1181) 1181 Prototype IDs (3) 60 Alien Tech Used (0) 0 Bonus (497) 497 TOTAL SCORE: 3418 Bonus ------- High Alert Combat Kills 12 Follower Combat Kills 285 Entered Garrisons 200 Cogmind --------- Core Integrity 0/400 Matter 268/300 Energy 261/265 System Corruption 5% Temperature Cool (2) Movement Treading (160) Location -9/Garrison Parts ------- > --- POWER (1) -------- Improved Ion Engine > --- PROPULSION (2) --- Light Treads Light Treads > --- UTILITY (4) ------ Small Storage Unit Structural Scanner Sensor Array > --- WEAPON (2) ------- Heavy Assault Rifle Improved Assault Rifle > --- INVENTORY (8) ---- Aluminum Leg Improved Heat Sink Particle Charger Medium Laser Light Assault Rifle Guided EMP Blaster Segregator Trap Peak State ------------ > --- POWER ------------ Ion Engine > --- PROPULSION ------- Wheel Compact Wheel > --- UTILITY ---------- Improved Heat Sink Small Storage Unit Structural Scanner > --- WEAPON ----------- Guided EMP Blaster > --- INVENTORY -------- Ion Engine Aluminum Leg Improved Heat Sink Medium Laser Light Assault Rifle Improved Assault Rifle [Rating: 21] Favorites ----------- Power Ion Engine Engine Ion Engine Propulsion Light Treads Treads Light Treads Leg Aluminum Leg Wheel Wheel Utility Small Storage Unit Device Structural Scanner Storage Small Storage Unit Weapon Improved Assault Rifle Energy Gun Field Laser Energy Cannon Advanced Beam Cannon Ballistic Gun Improved Assault Rifle Launcher Guided EMP Blaster Build | -11 -10 -10 -9 -9 -9 ------- Run | Yrd Mat Min Mat Sto Gar Slots Evolved 2 | . . . 2 . . Power . | . . . . . . Propulsion . | . . . . . . Utility 2 | . . . 2 . . Weapon . | . . . . . . Parts Attached 54 | 7 2 . 18 21 6 Power 6 | 1 . . 2 3 . Engine 6 | 1 . . 2 3 . Core . | . . . . . . Reactor . | . . . . . . Propulsion 10 | 2 . . 2 6 . Treads 2 | . . . . 2 . Leg 3 | . . . 2 1 . Wheel 5 | 2 . . . 3 . Hover . | . . . . . . Flight . | . . . . . . Utility 11 | 1 1 . 8 1 . Device 10 | . 1 . 8 1 . Storage 1 | 1 . . . . . Processor . | . . . . . . Hackware . | . . . . . . Protection . | . . . . . . Artifact . | . . . . . . Weapon 27 | 3 1 . 6 11 6 Energy Gun 7 | 1 . . 3 3 . Energy Cannon 3 | . 1 . 1 1 . Ballistic Gun 12 | 2 . . 1 5 4 Ballistic Cannon . | . . . . . . Launcher 5 | . . . 1 2 2 Special Weapon . | . . . . . . Impact Weapon . | . . . . . . Slashing Weapon . | . . . . . . Piercing Weapon . | . . . . . . Special Melee Weapon . | . . . . . . Unidentified Prototypes 3 | . . . . 3 . Parts Lost 13 | . . 1 4 8 . Power 2 | . . . 1 1 . Propulsion 5 | . . 1 1 3 . Utility 3 | . . . 1 2 . Weapon 3 | . . . 1 2 . Highest Loss Streak 4 | . . 1 4 2 . To Critical Strikes . | . . . . . . Average Slot Usage (%) 86 | . 91 85 83 88 84 Engine 11 | . 14 14 9 10 11 Treads 7 | . . . . 8 22 Leg 2 | . . . 6 2 . Wheel 9 | . 28 14 4 8 . Device 21 | . 5 14 30 25 22 Storage 11 | . 14 14 11 11 11 Energy Gun 5 | . . . 12 7 . Energy Cannon 6 | . 5 14 5 5 4 Ballistic Gun 10 | . 22 14 2 8 9 Peak Build Rating 21 | 6 7 7 17 21 20 Average Rating 12 | 4 6 6 11 14 16 On Entrance 8 | . 6 7 6 17 15 Naked Turns . | . . . . . . Heaviest Build 24 | 14 17 17 22 22 24 Greatest Support 40 | 26 26 10 20 40 40 Greatest Overweight (x) 6 | 1 . 1 6 1 . Average Overweight (x) . | . . 1 1 . . Largest Inventory Capacity 8 | 8 8 8 8 8 8 Average Capacity 7 | 7 8 8 8 8 8 Most Carried 8 | 5 4 5 7 8 8 Average Carried 5 | 1 2 4 4 7 7 Final Capacity 8 | 8 8 8 8 8 8 Final Carried 8 | 1 3 5 7 8 8 Class Distribution -------------------- 45% | Mutant 27% | Scavenger-Mutant 18% | Commander-Mutant 8% | Infiltrator-Mutant Dominant Class ---------------- Mutant | -10/Materials Mutant | -10/Mines Infiltrator-Mutant | -9/Materials Scavenger-Mutant | -9/Storage Commander-Mutant | -9/Garrison Resources | -11 -10 -10 -9 -9 -9 ----------- Run | Yrd Mat Min Mat Sto Gar Matter Collected 1075 | 208 113 19 173 319 243 Remotely . | . . . . . . Salvage Created 1275 | . 61 83 281 821 29 Parts 81 | . 5 2 18 53 3 Haulers Intercepted 2 | . . . . 2 . Recyclers Shooed 1 | . . . . 1 . Parts Field Recycled . | . . . . . . Retrieved Matter . | . . . . . . Parts Self-Destructed . | . . . . . . Prevented . | . . . . . . Kills | -11 -10 -10 -9 -9 -9 ------- Run | Yrd Mat Min Mat Sto Gar Combat Hostiles Destroyed 28 | . 3 2 6 15 2 Guns 16 | . 1 1 5 9 . Cannons 7 | . 2 1 1 3 . AOE 5 | . . . . 3 2 Classes Destroyed 8 | . 2 1 1 4 . Hauler 2 | . . . . 2 . Recycler 1 | . . . . 1 . Operator 1 | . . . . 1 . Watcher 4 | . 1 . 1 2 . Swarmer 9 | . 3 . . 4 2 Grunt 11 | . . 2 5 4 . Brawler 1 | . . . . 1 . Sentry 7 | . . . 1 6 . Best Kill Streak 5 | . 3 2 3 5 2 Combat Bots Only 4 | . 3 2 3 4 2 Max Kills in Single Turn 3 | . 1 1 1 3 2 Gunslinging . | . . . . . . Exploded 3 | . . . . 3 2 Melee . | . . . . . . Uniques/NPCs Destroyed . | . . . . . . Combat | -11 -10 -10 -9 -9 -9 -------- Run | Yrd Mat Min Mat Sto Gar Hostile Shots Fired 231 | . 21 16 58 120 16 Missed 78 | . 6 3 18 45 6 Damage Taken 1937 | . 145 152 538 943 159 Core 504 | . 58 45 137 199 65 Absorbed by Shields . | . . . . . . Regen/Repaired (Parts) 83 | . . . . 83 . Core Remaining (%) 79 | 100 . 58 . . . Volleys Fired 118 | . 9 8 19 69 13 Largest 2 | . 2 2 2 2 2 Hottest 126 | . 80 80 123 126 91 Shots Fired 229 | . 18 16 35 138 22 Gun 175 | . 13 8 22 118 14 Cannon 48 | . 5 8 12 19 4 Launcher 6 | . . . 1 1 4 Special . | . . . . . . Kinetic 86 | . 13 8 4 47 14 Thermal 137 | . 5 8 30 90 4 Explosive 2 | . . . 1 1 . Electromagnetic 4 | . . . . . 4 Robot Hit Streak 14 | . 5 8 12 14 6 Robot Miss Streak 5 | . 2 2 2 5 2 Penetration Max . | . . . . . . Secondary Targets 2 | . . . 1 1 . Max Gunslinging Chain 1 | . . . 1 1 . Shots Hit Robots 134 | . 11 12 23 82 6 Core Hits 52 | . 6 5 9 30 2 Critical Kills . | . . . . . . Critical Parts Destroyed 1 | . . . . 1 . Critical Strikes 8 | . . . 3 5 . Burn 7 | . . . 3 4 . Destroy 1 | . . . . 1 . Melee Attacks . | . . . . . . Impact . | . . . . . . Slashing . | . . . . . . Piercing . | . . . . . . Sneak Attacks . | . . . . . . Combat Hostiles . | . . . . . . Follow-up Attacks . | . . . . . . Damage Inflicted 2529 | . 146 185 382 1603 213 Guns 1689 | . 76 62 260 1243 48 Cannons 516 | . 70 123 122 181 20 Explosions 324 | . . . . 179 145 Melee . | . . . . . . Ramming . | . . . . . . Kinetic 738 | . 76 62 30 522 48 Thermal 1467 | . 70 123 352 902 20 Explosive 179 | . . . . 179 . Electromagnetic 145 | . . . . . 145 Impact . | . . . . . . Slashing . | . . . . . . Piercing . | . . . . . . Highest Corruption 5 | . . . . 5 5 Average Corruption 5 | . . . . 5 5 Corruption Purged . | . . . . . . Corruption Blocked . | . . . . . . Effects 24 | . . . . 10 14 Message Errors 5 | . . . . 1 4 Matter Fused 10 | . . . . 3 7 Heat Flow Errors 2 | . . . . 2 . Energy Discharges 5 | . . . . 3 2 Data Loss (minor) 1 | . . . . 1 . Alerts 1 | . . . . . 1 Overload Shots . | . . . . . . Overflow Damage 30 | . . . . 25 5 Projectiles . | . . . . . . Explosions 30 | . . . . 25 5 Melee . | . . . . . . Knockbacks . | . . . . . . Impact . | . . . . . . Kinetic . | . . . . . . Secondary . | . . . . . . Self-Inflicted Damage 38 | . . . 38 . . Shots 1 | . . . 1 . . Rammed . | . . . . . . Targets Rammed . | . . . . . . Kicked . | . . . . . . Crushed . | . . . . . . Highest Temperature 325 | . 90 231 325 229 30 Average Temperature 71 | . 38 123 111 57 11 Received Heat Transfer 774 | . 45 87 267 336 39 Siege Activations . | . . . . . . Robots Corrupted . | . . . . . . Combat Hostiles . | . . . . . . Parts Fried . | . . . . . . Impact Corruptions . | . . . . . . Robots Melted . | . . . . . . Combat Hostiles . | . . . . . . Parts Melted 13 | . 1 1 2 9 . Heat Transferred 3774 | . 148 259 999 2331 37 Parts Sabotaged . | . . . . . . Parts Stolen . | . . . . . . Parts Stripped . | . . . . . . Power Chain Reactions . | . . . . . . Alert | -11 -10 -10 -9 -9 -9 ------- Run | Yrd Mat Min Mat Sto Gar Peak Influence 785 | . 203 118 262 425 785 Initial 224 | . . 78 45 26 224 Average 260 | . 92 114 158 252 585 Maximum Alert Level 3 | . 1 . 1 2 3 Low Security (%) 38 | 100 84 100 57 18 . Level 1 49 | . 15 . 42 79 34 Level 2 3 | . . . . 2 14 Level 3 9 | . . . . . 51 Level 4 . | . . . . . . Level 5 . | . . . . . . High Security . | . . . . . . Max Security . | . . . . . . Squads Dispatched 4 | . 1 . 1 2 . Investigation 3 | . 1 . 1 1 . Extermination . | . . . . . . Reinforcement 1 | . . . . 1 . Assault . | . . . . . . Garrison . | . . . . . . Intercept . | . . . . . . Searches Triggered . | . . . . . . Construction Impeded . | . . . . . . Haulers Reinforced . | . . . . . . Active Scanning Responses . | . . . . . . Cargo Convoy Interrupts . | . . . . . . Stealth | -11 -10 -10 -9 -9 -9 --------- Run | Yrd Mat Min Mat Sto Gar Distress Signals 3 | . 1 . 1 1 . Communications Jammed . | . . . . . . Distress Signals . | . . . . . . Times Spotted 71 | . 14 2 15 25 15 Peak Tracking Total 8 | . 5 2 5 5 8 Tactical Retreats 11 | . 4 . 6 . 1 Traps | -11 -10 -10 -9 -9 -9 ------- Run | Yrd Mat Min Mat Sto Gar Traps Triggered 8 | . . . . 2 6 Indirectly 3 | . . . . . 3 Trap Hack Attempts . | . . . . . . Triggered . | . . . . . . Disarmed . | . . . . . . Reprogrammed . | . . . . . . Reused . | . . . . . . Traps Extracted . | . . . . . . Installed . | . . . . . . Triggered . | . . . . . . Most Traps Carried 1 | . . . . . 1 Machines | -11 -10 -10 -9 -9 -9 ---------- Run | Yrd Mat Min Mat Sto Gar Machines Disabled 6 | . . . 1 2 3 Max in Single Turn 1 | . . . 1 1 1 Garrison Relay 1 | . . . . . 1 Machines Repaired . | . . . . . . Machines Dismantled . | . . . . . . Machines Sabotaged . | . . . . . . Overloaded Fab Kills . | . . . . . . Hacking | -11 -10 -10 -9 -9 -9 --------- Run | Yrd Mat Min Mat Sto Gar Machines Accessed 18 | . 5 . 1 10 2 Terminals 16 | . 5 . 1 8 2 Fabricators . | . . . . . . Repair Stations 1 | . . . . 1 . Recycling Units . | . . . . . . Scanalyzers . | . . . . . . Garrison Access 1 | . . . . 1 . Total Hacks 41 | . 13 . 3 21 4 Successful 22 | . 9 . 1 12 . Failed 19 | . 4 . 2 9 4 Catastrophic 4 | . 1 . . 1 2 Database Lockouts . | . . . . . . Manual . | . . . . . . Terminals 37 | . 13 . 3 17 4 Fabricators . | . . . . . . Repair Stations 3 | . . . . 3 . Recycling Units . | . . . . . . Scanalyzers . | . . . . . . Garrison Access 1 | . . . . 1 . Terminal Hacks 19 | . 9 . 1 9 . Open Door 4 | . . . . 4 . Branch Access Points 1 | . 1 . . . . Alert Level 1 | . . . . 1 . Locate Traps 8 | . 5 . . 3 . Patrol Status 1 | . 1 . . . . Zone Layout 4 | . 2 . 1 1 . Fabricator Hacks . | . . . . . . Repair Station Hacks 2 | . . . . 2 . Scan Component 1 | . . . . 1 . Repair 1 | . . . . 1 . Recycling Unit Hacks . | . . . . . . Scanalyzer . | . . . . . . Garrison Access Hacks 1 | . . . . 1 . Unlock Access 1 | . . . . 1 . Unauthorized Hacks . | . . . . . . Terminals . | . . . . . . Fabricators . | . . . . . . Repair Stations . | . . . . . . Recycling Units . | . . . . . . Scanalyzers . | . . . . . . Garrison Access . | . . . . . . Data Cores Recovered 1 | . . . . 1 . Used . | . . . . . . Hacking Detections 10 | . 3 . 1 4 2 Full Trace Events 6 | . 1 . 1 2 2 Feedback Events . | . . . . . . Feedback Blocked . | . . . . . . Robot Schematics Acquired . | . . . . . . Robots Built . | . . . . . . Authchips . | . . . . . . Time . | . . . . . . Total Robot Build Rating . | . . . . . . Part Schematics Acquired . | . . . . . . Parts Built . | . . . . . . Authchips . | . . . . . . Time . | . . . . . . Total Part Build Rating . | . . . . . . Parts Repaired 1 | . . . . 1 . Time 51 | . . . . 51 . Parts Recycled . | . . . . . . Recycled Matter . | . . . . . . Retrieved Matter . | . . . . . . Retrieved Components . | . . . . . . Parts Scanalyzed . | . . . . . . Part Schematics Acquired . | . . . . . . Parts Damaged . | . . . . . . Bothacking | -11 -10 -10 -9 -9 -9 ------------ Run | Yrd Mat Min Mat Sto Gar Used RIF Installer . | . . . . . . Robots Hacked . | . . . . . . Non-combat . | . . . . . . Combat . | . . . . . . Robot Hacks Applied . | . . . . . . Relay Couplers Released 3 | . . . . . 3 Machine Destruction 3 | . . . . . 3 Fabnet Peak Effective % . | . . . . . . Robots Rewired . | . . . . . . Allies Hacked . | . . . . . . Hacks Repelled . | . . . . . . Allies | -11 -10 -10 -9 -9 -9 -------- Run | Yrd Mat Min Mat Sto Gar Total Allies 10 | . . . . 10 . Largest Group 10 | . . . . 10 10 Highest-Rated Group 88 | . . . . 88 88 Highest-Rated Ally 16 | . . . . 16 16 Total Orders . | . . . . . . Ally Attacks 87 | . . . . 5 82 Total Damage 675 | . . . . 32 643 Kills 16 | . . . . 2 14 Allies Corrupted . | . . . . . . Allies Melted . | . . . . . . Intel | -11 -10 -10 -9 -9 -9 ------- Run | Yrd Mat Min Mat Sto Gar Robot Analysis Total . | . . . . . . Derelict Logs Recovered 1 | . . 1 . . . Drone Launches . | . . . . . . Drone Recoveries . | . . . . . . Exploration | -11 -10 -10 -9 -9 -9 ------------- Run | Yrd Mat Min Mat Sto Gar Turns Passed 2494 | 53 329 192 409 1055 456 Spaces Moved 1500 | 47 290 168 255 487 253 Core 44 | 14 . . 30 . . Treads 462 | . . . . 209 253 Legs 154 | . . . 84 70 . Wheels 840 | 33 290 168 141 208 . Hover . | . . . . . . Flight . | . . . . . . Fastest Speed 50 | 50 90 95 95 90 160 Average Speed 123 | 80 90 95 125 136 160 Slowest Speed 350 | 100 90 95 350 190 160 Overloaded Moves . | . . . . . . Propulsion Burnouts . | . . . . . . Robots Hopped . | . . . . . . Cave-ins Triggered . | . . . . . . Exploration Rate (%) 39 | 3 50 39 18 80 49 Regions Visited 5 Branch Regions 2 Pre-discovered Areas 2 | . . 1 . 1 . Known Exits Taken 2 | . 1 . . 1 . Unknown Exits Taken 3 | 1 . 1 1 . . Scrap Searched 1 | . . 1 . . . Spaces Dug 9 | . . . 9 . . Terrain Destroyed 15 | . . . 9 6 . Melee . | . . . . . . Projectile . | . . . . . . AOE 15 | . . . 9 6 . Terrain Rammed . | . . . . . . Walls Destroyed . | . . . . . . Machines Disabled . | . . . . . . Actions | -11 -10 -10 -9 -9 -9 --------- Run | Yrd Mat Min Mat Sto Gar Total 1915 | 60 340 184 304 742 285 Wait 191 | 2 37 5 4 142 1 Move 1495 | 46 289 167 254 486 253 Hop . | . . . . . . Pick Up 38 | 5 3 3 9 15 3 Fast Attach 6 | 2 . . . 1 3 Attach 30 | 4 1 . 7 12 6 Detach 5 | . . . . 2 3 Swap 21 | 1 1 . 11 8 . Drop 11 | . . 1 . 7 3 Fire 118 | . 9 8 19 69 13 Melee . | . . . . . . Ram . | . . . . . . Kick . | . . . . . . Crush . | . . . . . . Escape Stasis . | . . . . . . Rewire . | . . . . . . Trap . | . . . . . . Miscellaneous . | . . . . . . Route ------- -11/Scrapyard -10/Materials -10/Mines -9/Materials -9/Storage -9/Garrison History --------- Turn | Location | Event 6 | -11/Scrapyard | Discovered new exit (range 15) 54 | -11/Scrapyard | Entered Materials 89 | -10/Materials | Identified exit to Mines 305 | -10/Materials | Build established: Mutant 383 | -10/Materials | Entered Mines 452 | -10/Mines | Received a Rocket Launcher from a helpful Derelict 554 | -10/Mines | Discovered new exit (range 13) 568 | -10/Mines | Assembled infested the area 575 | -10/Mines | Entered Materials 575 | -9/Materials | Evolved 2 slots: Utility x2 731 | -9/Materials | Discovered new exit (range 9) 848 | -9/Materials | Lost 4 parts (1p1n1u1w) 984 | -9/Materials | Entered Storage 1089 | -9/Storage | Core integrity fell below 50% 1248 | -9/Storage | Learned location of Armory (-4) 1689 | -9/Storage | Core integrity fell below 20% 1923 | -9/Storage | Repaired Imp. Assault Rifle 1946 | -9/Storage | Assisted by bots powering up and referring to "LRC-V3" 2021 | -9/Storage | Identified exit to Garrison 2039 | -9/Storage | Entered Garrison 2039 | -9/Garrison | Accompanied by 10 allies 2132 | -9/Garrison | Garrison Relay disabled 2263 | -9/Garrison | Triggered checkpoint 2268 | -9/Garrison | Lost 5 allies 2268 | -9/Garrison | Triggered checkpoint 2283 | -9/Garrison | Build established: Commander-Mutant 2319 | -9/Garrison | Triggered checkpoint 2495 | -9/Garrison | Destroyed by Heavy Explosive Trap Last Messages --------------- Mercenary 2h triggered Stasis Trap. A bubble of rippling energy engulfs the area. Field strength at 85. Field strength at 55. Field strength at 40. Field strength at 25. System corrupted: Energy discharge (-106). Dropped Gui. EMP Blaster. UEBE/RJIVB:G#|L5VPCFDJ Acquired Gui. EMP Blaster. System corrupted: Matter fused (-9). Mercenary 2b triggered Gamma Bomb Trap. A bubble of electromagnetic force engulfs the area. Mercenary 2b destroyed. Storage Shell breached. Acquired 37 matter. Acquired Segregator Trap. Triggered Heavy Explosive Trap. An explosion rips through the floor. Map ----- +----------------------------------------------------+ | ???????????????????????????????????????? | | ???????????????????????????????????????? | | ???????????????????????????????????????? | | ???????????????????????????????????????? | | ???????????????????????????????????????? | | ???????????????????????????????????????? | | ???????????????????????????????????????? | | ???????????????????????????????????????? | | ???????????????????????????????????????? | | ???????????????????????????????????????? | | ???????????????????????????????????????? | | ???????????????????????????????????????? | | ???????????????????????????????????????? | | ???????????????????????????????????????? | | ???????????????????????????????????????? | | ????????????????#??????????????????????? | | ????????????????# ?????????????????????? | | ????????????????# ##################### | | ????????????????# | | ????????????????# | | ?????????????????????# | | ?????????????????????# ######### #### | | ?????????????????????# #???????# #??? | | ?????????????????????# #???????#! #??? | | ??????##############?# #?????###^^#??? | | ??????# g @ #?# #?????#%= ^#??? | | ??????# """" g"""" #?# #?????#[%=^#??? | | ??????# "&&" "??" ### #?????# * #?## | | ??????# " &" "??" ## #?????### ### | | ??????# "" """" ## #???????# | | ??????# #???????# | | ??????#[ #???????######! | | ??????#= """ """" ## #????????????## | | ??????# &&" "??" ## #?????????????? | | ??????#= &&" "??" ### #?????????????? | | ??????#! """ """" #?# #?????????????? | | ??????# #?# #?????????????? | | ??????##############?# #?????????????? | | ?????????????????????? #?????????????? | | ?????????????????????? #?????????????? | | ?????????????????????? #?????????????? | | ?????????????????????? #?????????????? | | ?????????????????????? #?????????????? | | ??????????????????????####?????????????? | | ???????????????????????????????????????? | | ???????????????????????????????????????? | | ???????????????????????????????????????? | | ???????????????????????????????????????? | | ???????????????????????????????????????? | | ???????????????????????????????????????? | +----------------------------------------------------+ Best States ------------- Heat Dissipation 42 Energy Generation 12 Energy Capacity 265 Matter Stores 300 Matter Capacity 300 Sight Range 16 Robot Scan Range 14 Terrain Scan Density 10 ECM Strength 1 Evasion (%) 55 Recoil Reduction 2 Item Schematics ----------------- None Robot Schematics ------------------ None Fabricated ------------ Nothing Alien Tech Used ----------------- None Achievements -------------- None Challenges ------------ None Game ------ Seed BombardmentRecoilDatajack Manual? 0 Play Time 00:33:10 Cumulative 11.2 hours Start 2025.03.16 @ 20:11:08 End 2025.03.16 @ 20:41:50 Sessions 1 Manual Loads 0 Difficulty Rogue Special Mode None Game No. 22 Rogue 22 Adventurer 0 Explorer 0 Win Type - Total 0 Types 0/0/0/0/0/0/0/0/0 Lore% 5 Gallery% 14 Achievement% 14 Wizard Run 0 Options --------- Layout 1 ASCII 0 Keyboard 0 Movement Mouse Keybinds 0 Fullscreen 2 Font 24/Smallcaps Map View 50x35 Zoom Use 0% Tactical HUD 0 Map Filters NONE Filters NONE Steam 1 RUN: e009077b-8476-46ce-add5-a2344f15d65d